Workbook

Sheet Contents
B1: REGULATORY REPORTING STATEMENT
B2: =TradingName -> Powercor Australia Ltd
B3: =CONCATENATE("Benchmarking RIN response ",CRY) -> Benchmarking RIN response 2014
B5: CONTENTS
B12: 3. ECONOMIC BENCHMARKING

Sheet 1.0 Business & other details
B1: REGULATORY REPORTING STATEMENT
B2: =TradingName -> Powercor Australia Ltd
B3: =CONCATENATE("Benchmarking RIN response ",CRY) -> Benchmarking RIN response 2014
B4: 1.2 BUSINESS & OTHER DETAILS
B7: Instructions
B8: Complete the following business details regulatory template before entering data or values in any other regulatory template. This regulatory template is linked to other cells within the spreadsheet and automatically generates column headings.
B10: TABLE 1.2.1 - SUBMISSION PARTICULARS INPUT SHEET
B12: Entity details
B14: Trading name | C14: Powercor Australia Ltd
B15: ACN / ABN | C15: 64651109
B18: Business address | C18: Address 1 | E18: 40 Market Street
D19: Address 2
C20: Suburb | E20: Melbourne
D21: State | E21: Vic | F21: p/code | G21: 3000
B23: Postal address | C23: Address 1 | E23: Locked Bag 14090
D24: Address 2
C25: Suburb | E25: Melbourne
D26: State | E26: Vic | F26: p/code | G26: 8001
B29: Contact name/s | C29: Hannah Williams
B30: Contact phone/s | C30: 03 9683 4088
B31: Contact email address/s | C31: hwilliams@powercor.com.au
B34: Regulatory year | C34: Calendar
C35: 2014
B40: Sector | C40: Electricity
B41: Segment | C41: Distribution
B42: Source | C42: Regulatory proposal
B43: Regulatory Year | C43: 2013
B44: Reporting Period Type | C44: Financial
B45: RIN Type | C45: EB
B46: Security Classification | C46: Public
B47: Estimated or actual | C47: Consolidated
B48: RIN response - version no. | C48: 1
B49: RIN response - amendment reason | C49: <If this response is a resubmission because data has been amended, NSP to provide amendment reason> eg. corrected data errors in tables 3.1.1 & 3.5.1
B50: RIN template - version no. | C50: 2

Sheet 3.1 Revenue
C1: REGULATORY REPORTING STATEMENT
C2: =TradingName -> Powercor Australia Ltd
C3: =CONCATENATE("Benchmarking RIN response ",CRY) -> Benchmarking RIN response 2014
C4: 3.1 REVENUE
E8: Standard control services | F8: Alternative control services
E9: Actual ($000's)
E10: =CRY -> 2014 | F10: =CRY -> 2014
C12: TABLE 3.1.1 - REVENUE GROUPING BY CHARGEABLE QUANTITY
A13: ED_REV311_00001 | B13: DREV0101 | C13: Revenue from Fixed Customer Charges | E13: 47807.23857 | F13: 0
A14: ED_REV311_00002 | B14: DREV0102 | C14: Revenue from Energy Delivery charges where time of use is not a determinant | E14: 179931.4872 | F14: 0
A15: ED_REV311_00003 | B15: DREV0103 | C15: Revenue from On–Peak Energy Delivery charges | E15: 218829.0423 | F15: 0
A16: ED_REV311_00004 | B16: DREV0104 | C16: Revenue from Shoulder period Energy Delivery Charges | E16: 154.377361 | F16: 0
A17: ED_REV311_00005 | B17: DREV0105 | C17: Revenue from Off–Peak Energy Delivery charges | E17: 31568.79814 | F17: 0
A18: ED_REV311_00006 | B18: DREV0106 | C18: Revenue from controlled load customer charges | E18: 1644.841377 | F18: 0
A19: ED_REV311_00007 | B19: DREV0107 | C19: Revenue from unmetered supplies | E19: 5717.986982 | F19: 0
A20: ED_REV311_00008 | B20: DREV0108 | C20: Revenue from Contracted Maximum Demand charges | E20: 103316.0091 | F20: 0
A21: ED_REV311_00009 | B21: DREV0109 | C21: Revenue from Measured Maximum Demand charges | E21: 0 | F21: 0
A22: ED_REV311_00010 | B22: DREV0110 | C22: Revenue from metering charges | E22: 0 | F22: 0
A23: ED_REV311_00011 | B23: DREV0111 | C23: Revenue from connection charges | E23: 0 | F23: 9717.004395
A24: ED_REV311_00012 | B24: DREV0112 | C24: Revenue from public lighting charges | E24: 0 | F24: 9305.02486
A25: ED_REV311_00013 | B25: DREV0113 | C25: Revenue from other Sources | E25: 0 | F25: 11112.02385
B26: DREV01 | C26: Total revenue by chargeable quantity | D26: $000's | E26: =SUM(E13:E25) -> 588969.781 | F26: =SUM(F13:F25) -> 30134.05311
C28: TABLE 3.1.2 REVENUE GROUPING BY CUSTOMER TYPE OR CLASS
A29: ED_REV312_00001 | B29: DREV0201 | C29: Revenue from residential Customers | E29: 250516.33 | F29: 0
A30: ED_REV312_00002 | B30: DREV0202 | C30: Revenue from Non residential customers not on demand tariffs | E30: 166163.0125 | F30: 0
A31: ED_REV312_00003 | B31: DREV0203 | C31: Revenue from Non-residential low voltage demand tariff customers | E31: 117220.4621 | F31: 0
A32: ED_REV312_00004 | B32: DREV0204 | C32: Revenue from Non-residential high voltage demand tariff customers | E32: 49352.00286 | F32: 0
A33: ED_REV312_00005 | B33: DREV0205 | C33: Revenue from unmetered supplies | E33: 5717.986982 | F33: 9305.02486
A34: ED_REV312_00006 | B34: DREV0206 | C34: Revenue from Other Customers | E34: 0 | F34: 20829.02825
B35: DREV02 | C35: Total revenue by customer class | D35: $000's | E35: =SUM(E29:E34) -> 588969.7944 | F35: =SUM(F29:F34) -> 30134.05311
C37: TABLE 3.1.3 REVENUE (penalties) ALLOWED (deducted) THROUGH INCENTIVE SCHEMES
A38: ED_REV313_00001 | B38: DREV0301 | C38: EBSS | E38: -405 | F38: 0
A39: ED_REV313_00002 | B39: DREV0302 | C39: STPIS | E39: 20937 | F39: 0
A40: ED_REV313_00003 | B40: DREV0303 | C40: F-Factor | E40: 2470 | F40: 0
A41: ED_REV313_00004 | B41: DREV0304 | C41: S-Factor True up | E41: -7519 | F41: 0
A42: ED_REV313_00005 | B42: DREV0305 | C42: Other | E42: 0 | F42: 0
B43: DREV03 | C43: Total revenue of incentive schemes | D43: $000's | E43: =SUM(E38:E42) -> 15483 | F43: =SUM(F38:F42) -> 0

Sheet 3.2 Opex
C1: REGULATORY REPORTING STATEMENT | F1: Worksheet navigation
C2: =TradingName -> Powercor Australia Ltd
C3: =CONCATENATE("Benchmarking RIN response ",CRY) -> Benchmarking RIN response 2014
C4: 3.2 OPERATING EXPENDITURE
C7: Instructions
C8: =CONCATENATE(TradingName, " must fill in opex in table 3.2.1 for opex categories reported in response to its annual reporting RIN.") -> Powercor Australia Ltd must fill in opex in table 3.2.1 for opex categories reported in response to its annual reporting RIN.
E11: Standard control services | F11: Alternative control services
E12: Actual ($000's)
E13: =CRY -> 2014 | F13: =CRY -> 2014
C15: TABLE 3.2.1 - OPEX CATEGORIES
C17: Table 3.2.1.1 Current opex categories and cost allocations
B18: DOPEX0101 | C18: Network Operating costs | E18: 23034.66033 | F18: 0
B19: DOPEX0102 | C19: Meter data services | E19: 0 | F19: 0
B20: DOPEX0103 | C20: Billing & Revenue Collection | E20: 5630.452942 | F20: 0
B21: DOPEX0104 | C21: Advertising/ Marketing | E21: 11.91854098 | F21: 0
B22: DOPEX0105 | C22: Customer Service | E22: 7456.742701 | F22: 0
B23: DOPEX0106 | C23: Energy Planning | E23: 0 | F23: 0
B24: DOPEX0107 | C24: Regulatory | E24: 0 | F24: 0
B25: DOPEX0108 | C25: Regulatory Reset | E25: 1096.48337 | F25: 0
B26: DOPEX0109 | C26: IT | E26: 0 | F26: 0
B27: DOPEX0110 | C27: Licence Fee | E27: 18.15425 | F27: 0
B28: DOPEX0111 | C28: GSL payments | E28: 2116.680034 | F28: 0
B29: DOPEX0112 | C29: Non-network alternatives costs | E29: 0 | F29: 0
B30: DOPEX0113 | C30: Debt raising costs | E30: 230.0682476 | F30: 0
B31: DOPEX0114 | C31: Other | E31: 6128.868993 | F31: 0
B32: DOPEX0115 | C32: AMI | E32: 0 | F32: 0
B33: DOPEX0116 | C33: Public Lighting | E33: 0 | F33: 200.6622531
B34: DOPEX0117 | C34: Alternative control -other | E34: 0 | F34: 17190.11703
B35: DOPEX0118 | C35: Routine | E35: 57273.98022 | F35: 0
B36: DOPEX0119 | C36: Condition based | E36: 40679.7246 | F36: 0
B37: DOPEX0120 | C37: Emergency | E37: 26938.01231 | F37: 0
B38: DOPEX0121 | C38: SCADA/Network Control | E38: 1016.8397 | F38: 0
B39: DOPEX0122 | C39: Other - Standard Control Services (a) | E39: 3958.762095 | F39: 0
B40: DOPEX0123 | C40: AMI | E40: 0 | F40: 0
B41: DOPEX0124 | C41: Public Lighting | E41: 0 | F41: 6731.459183
B42: DOPEX0125 | C42: Alternative control -other | E42: 0 | F42: 3484.142867
B43: DOPEX0126 | C43: Negotiated services | E43: 0 | F43: 0
B44: DOPEX0127 | C44: Unregulated services | E44: 0 | F44: 0
B45: DOPEX0128
B46: DOPEX0129
B47: DOPEX0130
B48: DOPEX0131
B49: DOPEX0132
B50: DOPEX0133
B51: DOPEX0134
B52: DOPEX0135
B53: DOPEX0136
B54: DOPEX0137
B55: DOPEX0138
B56: DOPEX0139
B57: DOPEX0140
B58: DOPEX0141
B59: DOPEX0142
A60: ED_OPX3211_99999 | B60: DOPEX01 | C60: Total opex | D60: ($000's) | E60: =SUM(E18:E59) -> 175591.3483 | F60: =SUM(F18:F59) -> 27606.38133
C63: Table 3.2.1.2A - Historical opex categories and cost allocations | E63: =CRY -> 2014 | F63: =CRY -> 2014
B64: DOPEX0101A | C64: Network Operating costs | E64: 23034.66033 | F64: 0
B65: DOPEX0102A | C65: Meter data services | E65: 0 | F65: 0
B66: DOPEX0103A | C66: Billing & Revenue Collection | E66: 5630.452942 | F66: 0
B67: DOPEX0104A | C67: Advertising/ Marketing | E67: 11.91854098 | F67: 0
B68: DOPEX0105A | C68: Customer Service | E68: 7456.742701 | F68: 0
B69: DOPEX0106A | C69: Energy Planning | E69: 0 | F69: 0
B70: DOPEX0107A | C70: Regulatory | E70: 0 | F70: 0
B71: DOPEX0108A | C71: Regulatory Reset | E71: 1096.48337 | F71: 0
B72: DOPEX0109A | C72: IT | E72: 0 | F72: 0
B73: DOPEX0110A | C73: Licence Fee | E73: 18.15425 | F73: 0
B74: DOPEX0111A | C74: GSL payments | E74: 2116.680034 | F74: 0
B75: DOPEX0112A | C75: Non-network alternatives costs | E75: 0 | F75: 0
B76: DOPEX0113A | C76: Debt raising costs | E76: 230.0682476 | F76: 0
B77: DOPEX0114A | C77: Other | E77: 6128.868993 | F77: 0
B78: DOPEX0115A | C78: AMI | E78: 0 | F78: 0
B79: DOPEX0116A | C79: Public Lighting | E79: 0 | F79: 200.6622531
B80: DOPEX0117A | C80: Alternative control -other | E80: 0 | F80: 17190.11703
B81: DOPEX0118A | C81: Routine | E81: 57273.98022 | F81: 0
B82: DOPEX0119A | C82: Condition based | E82: 40679.7246 | F82: 0
B83: DOPEX0120A | C83: Emergency | E83: 26938.01231 | F83: 0
B84: DOPEX0121A | C84: SCADA/Network Control | E84: 1016.8397 | F84: 0
B85: DOPEX0122A | C85: Other - Standard Control Services (a) | E85: 3958.762095 | F85: 0
B86: DOPEX0123A | C86: AMI | E86: 0 | F86: 0
B87: DOPEX0124A | C87: Public Lighting | E87: 0 | F87: 6731.459183
B88: DOPEX0125A | C88: Alternative control -other | E88: 0 | F88: 3484.142867
B89: DOPEX0126A | C89: Negotiated services | E89: 0 | F89: 0
B90: DOPEX0127A | C90: Unregulated services | E90: 0 | F90: 0
B91: DOPEX0128A
B92: DOPEX0129A
B93: DOPEX0130A
B94: DOPEX0131A
B95: DOPEX0132A
B96: DOPEX0133A
B97: DOPEX0134A
B98: DOPEX0135A
B99: DOPEX0136A
B100: DOPEX0137A
B101: DOPEX0138A
B102: DOPEX0139A
B103: DOPEX0140A
B104: DOPEX0141A
B105: DOPEX0142A
A106: ED_OPX3212A_99999 | B106: DOPEX01A | C106: Total opex | D106: ($000's) | E106: =SUM(E64:E105) -> 175591.3483 | F106: =SUM(F64:F105) -> 27606.38133
C108: Table 3.2.1.2B - Historical opex categories and cost allocations | E108: =CRY -> 2014 | F108: =CRY -> 2014
B109: DOPEX0101B
B110: DOPEX0102B
B111: DOPEX0103B
B112: DOPEX0104B
B113: DOPEX0105B
B114: DOPEX0106B
B115: DOPEX0107B
B116: DOPEX0108B
B117: DOPEX0109B
B118: DOPEX0110B
B119: DOPEX0111B
B120: DOPEX0112B
B121: DOPEX0113B
B122: DOPEX0114B
B123: DOPEX0115B
B124: DOPEX0116B
B125: DOPEX0117B
B126: DOPEX0118B
B127: DOPEX0119B
B128: DOPEX0120B
B129: DOPEX0121B
B130: DOPEX0122B
B131: DOPEX0123B
B132: DOPEX0124B
B133: DOPEX0125B
B134: DOPEX0126B
B135: DOPEX0127B
B136: DOPEX0128B
B137: DOPEX0129B
B138: DOPEX0130B
B139: DOPEX0131B
B140: DOPEX0132B
B141: DOPEX0133B
B142: DOPEX0134B
B143: DOPEX0135B
B144: DOPEX0136B
B145: DOPEX0137B
B146: DOPEX0138B
B147: DOPEX0139B
B148: DOPEX0140B
B149: DOPEX0141B
B150: DOPEX0142B
A151: ED_OPX3212B_99999 | B151: DOPEX01B | C151: Total opex | D151: ($000's) | E151: =SUM(E109:E150) -> 0 | F151: =SUM(F109:F150) -> 0
C153: Table 3.2.1.2C - Historical opex categories and cost allocations | E153: =CRY -> 2014 | F153: =CRY -> 2014
B154: DOPEX0101C
B155: DOPEX0102C
B156: DOPEX0103C
B157: DOPEX0104C
B158: DOPEX0105C
B159: DOPEX0106C
B160: DOPEX0107C
B161: DOPEX0108C
B162: DOPEX0109C
B163: DOPEX0110C
B164: DOPEX0111C
B165: DOPEX0112C
B166: DOPEX0113C
B167: DOPEX0114C
B168: DOPEX0115C
B169: DOPEX0116C
B170: DOPEX0117C
B171: DOPEX0118C
B172: DOPEX0119C
B173: DOPEX0120C
B174: DOPEX0121C
B175: DOPEX0122C
B176: DOPEX0123C
B177: DOPEX0124C
B178: DOPEX0125C
B179: DOPEX0126C
B180: DOPEX0127C
B181: DOPEX0128C
B182: DOPEX0129C
B183: DOPEX0130C
B184: DOPEX0131C
B185: DOPEX0132C
B186: DOPEX0133C
B187: DOPEX0134C
B188: DOPEX0135C
B189: DOPEX0136C
B190: DOPEX0137C
B191: DOPEX0138C
B192: DOPEX0139C
B193: DOPEX0140C
B194: DOPEX0141C
B195: DOPEX0142C
A196: ED_OPX3212C_99999 | B196: DOPEX01C | C196: Total opex | D196: ($000's) | E196: =SUM(E154:E195) -> 0 | F196: =SUM(F154:F195) -> 0
C198: TABLE 3.2.2 - OPEX CONSISTENCY
C200: Table 3.2.2.1 Opex consistency - current cost allocation approach | E200: =CRY -> 2014 | F200: =CRY -> 2014
A201: ED_OPX3221_00001 | B201: DOPEX0201 | C201: Opex for network services | E201: 151526.8019 | F201: 0
A202: ED_OPX3221_00002 | B202: DOPEX0202 | C202: Opex for metering | E202: 0 | F202: 0
A203: ED_OPX3221_00003 | B203: DOPEX0203 | C203: Opex for connection services | E203: 23431.74639 | F203: 10835.20528
A204: ED_OPX3221_00004 | B204: DOPEX0204 | C204: Opex for public lighting | E204: 0 | F204: 6932.121436
A205: ED_OPX3221_00005 | B205: DOPEX0205 | C205: Opex for amounts payable for easement levy or similar direct charges on DNSP | E205: 0 | F205: 0
A206: ED_OPX3221_00006 | B206: DOPEX0206 | C206: Opex for transmission connection point planning | E206: 632.8 | F206: 0
C207: Total opex | D207: ($000's) | E207: =SUM(E201:E206) -> 175591.3483 | F207: =SUM(F201:F206) -> 17767.32671
C209: Table 3.2.2.2 Opex consistency - historical cost allocation approaches | E209: =CRY -> 2014 | F209: =CRY -> 2014
A210: ED_OPX3222_00001 | B210: DOPEX0201A | C210: Opex for network services | E210: 151526.8019 | F210: 0
A211: ED_OPX3222_00002 | B211: DOPEX0202A | C211: Opex for metering | E211: 0 | F211: 0
A212: ED_OPX3222_00003 | B212: DOPEX0203A | C212: Opex for connection services | E212: 23431.74639 | F212: 10835.20528
A213: ED_OPX3222_00004 | B213: DOPEX0204A | C213: Opex for public lighting | E213: 0 | F213: 6932.121436
... 5 more rows

Sheet 3.2.3 Provisions
C1: REGULATORY REPORTING STATEMENT
C2: =TradingName -> Powercor Australia Ltd
C3: =CONCATENATE("Benchmarking RIN response ",CRY) -> Benchmarking RIN response 2014
C4: 3.2 OPERATING EXPENDITURE
C6: Instructions
C7: =CONCATENATE(TradingName, " must fill in opex in table 3.2.3 for opex categories reported in response to its annual reporting RIN.") -> Powercor Australia Ltd must fill in opex in table 3.2.3 for opex categories reported in response to its annual reporting RIN.
C9: TABLE 3.2.3 - PROVISIONS
C10: For each provision report:
E11: $000's
E12: =CRY -> 2014
B14: DOPEX03A | C14: Provision for Accident Compensation
C15: Represents an estimation of settlement, administration and legal costs associated with investigating and defending employee compensation claims.
B16: DOPEX0301A | C16: Opening balance (the carrying amount at the beginning of the period) | E16: 0
C17: Additional provisions made in the period, including increases to existing provisions
B18: DOPEX0302A | C18: Opex component | E18: 0
B19: DOPEX0303A | C19: Capex component | E19: 0
B20: DOPEX0304A | C20: Other component | E20: 0
C21: Amounts used (that is, incurred and charged against the provision) during the period
B22: DOPEX0305A | C22: Opex component | E22: 0
B23: DOPEX0306A | C23: Capex component | E23: 0
B24: DOPEX0307A | C24: Other component | E24: 0
C25: Unused amounts reversed during the period
B26: DOPEX0308A | C26: Opex component | E26: 0
B27: DOPEX0309A | C27: Capex component | E27: 0
B28: DOPEX0310A | C28: Other component | E28: 0
C29: The increase during the period in the discounted amount arising from the passage of time and the effect of any change in the discount rate
B30: DOPEX0311A | C30: Opex component | E30: 0
B31: DOPEX0312A | C31: Capex component | E31: 0
B32: DOPEX0313A | C32: Other component | E32: 0
B33: DOPEX0314A | C33: Closing balance (carrying amount at the end of the period) | E33: 0
B34: DOPEX03B | C34: Provision for Uninsured Losses
C35: Provision for claims relating to damages sustained from Network assets.
B36: DOPEX0301B | C36: Opening balance (the carrying amount at the beginning of the period) | E36: -689.67361
C37: Additional provisions made in the period, including increases to existing provisions
B38: DOPEX0302B | C38: Opex component | E38: -797.33906
B39: DOPEX0303B | C39: Capex component | E39: 0
B40: DOPEX0304B | C40: Other component | E40: 0
C41: Amounts used (that is, incurred and charged against the provision) during the period
B42: DOPEX0305B | C42: Opex component | E42: 0
B43: DOPEX0306B | C43: Capex component | E43: 0
B44: DOPEX0307B | C44: Other component | E44: 0
C45: Unused amounts reversed during the period
B46: DOPEX0308B | C46: Opex component | E46: 9.43727
B47: DOPEX0309B | C47: Capex component | E47: 0
B48: DOPEX0310B | C48: Other component | E48: 0
C49: The increase during the period in the discounted amount arising from the passage of time and the effect of any change in the discount rate
B50: DOPEX0311B | C50: Opex component | E50: 0
B51: DOPEX0312B | C51: Capex component | E51: 0
B52: DOPEX0313B | C52: Other component | E52: 0
B53: DOPEX0314B | C53: Closing balance (carrying amount at the end of the period) | E53: -1477.5754
B54: DOPEX03C | C54: Provision for Customer Refunds
C55: Represents the present value of the best estimate of the future sacrifice of economic benefits that will be required to settle claims for billings adjustments that relate to the prior year
B56: DOPEX0301C | C56: Opening balance (the carrying amount at the beginning of the period) | E56: 0
C57: Additional provisions made in the period, including increases to existing provisions
B58: DOPEX0302C | C58: Opex component | E58: 0
B59: DOPEX0303C | C59: Capex component | E59: 0
B60: DOPEX0304C | C60: Other component | E60: 0
C61: Amounts used (that is, incurred and charged against the provision) during the period
B62: DOPEX0305C | C62: Opex component | E62: 0
B63: DOPEX0306C | C63: Capex component | E63: 0
B64: DOPEX0307C | C64: Other component | E64: 0
C65: Unused amounts reversed during the period
B66: DOPEX0308C | C66: Opex component | E66: 0
B67: DOPEX0309C | C67: Capex component | E67: 0
B68: DOPEX0310C | C68: Other component | E68: 0
C69: The increase during the period in the discounted amount arising from the passage of time and the effect of any change in the discount rate
B70: DOPEX0311C | C70: Opex component | E70: 0
B71: DOPEX0312C | C71: Capex component | E71: 0
B72: DOPEX0313C | C72: Other component | E72: 0
B73: DOPEX0314C | C73: Closing balance (carrying amount at the end of the period) | E73: 0
B74: DOPEX03D | C74: Provision for Stock Write Down
C75: Relates to materials and or stock held for maintenance and repair of Network Assets.
B76: DOPEX0301D | C76: Opening balance (the carrying amount at the beginning of the period) | E76: -45.33055
C77: Additional provisions made in the period, including increases to existing provisions
B78: DOPEX0302D | C78: Opex component | E78: 0
B79: DOPEX0303D | C79: Capex component | E79: 0
B80: DOPEX0304D | C80: Other component | E80: 0
C81: Amounts used (that is, incurred and charged against the provision) during the period
B82: DOPEX0305D | C82: Opex component | E82: 0
B83: DOPEX0306D | C83: Capex component | E83: 0
B84: DOPEX0307D | C84: Other component | E84: 0
C85: Unused amounts reversed during the period
B86: DOPEX0308D | C86: Opex component | E86: 0
B87: DOPEX0309D | C87: Capex component | E87: 0
B88: DOPEX0310D | C88: Other component | E88: 0
C89: The increase during the period in the discounted amount arising from the passage of time and the effect of any change in the discount rate
B90: DOPEX0311D | C90: Opex component | E90: 0
B91: DOPEX0312D | C91: Capex component | E91: 0
B92: DOPEX0313D | C92: Other component | E92: 0
B93: DOPEX0314D | C93: Closing balance (carrying amount at the end of the period) | E93: -45.33055
B94: DOPEX03E | C94: Provision for Employee Entitlements
C95: Provision made to meet the future annual leave and long service leave entitlements of employees.
B96: DOPEX0301E | C96: Opening balance (the carrying amount at the beginning of the period) | E96: -53982.55251
C97: Additional provisions made in the period, including increases to existing provisions
B98: DOPEX0302E | C98: Opex component | E98: -6876.649181
B99: DOPEX0303E | C99: Capex component | E99: -10936.53253
B100: DOPEX0304E | C100: Other component | E100: 0
C101: Amounts used (that is, incurred and charged against the provision) during the period
B102: DOPEX0305E | C102: Opex component | E102: 7907.428663
B103: DOPEX0306E | C103: Capex component | E103: 13117.50002
B104: DOPEX0307E | C104: Other component | E104: 0
C105: Unused amounts reversed during the period
B106: DOPEX0308E | C106: Opex component | E106: 0
B107: DOPEX0309E | C107: Capex component | E107: 0
B108: DOPEX0310E | C108: Other component | E108: 0
C109: The increase during the period in the discounted amount arising from the passage of time and the effect of any change in the discount rate
B110: DOPEX0311E | C110: Opex component | E110: -1309.33051
B111: DOPEX0312E | C111: Capex component | E111: 0
B112: DOPEX0313E | C112: Other component | E112: 0
B113: DOPEX0314E | C113: Closing balance (carrying amount at the end of the period) | E113: -52080.13605
B114: DOPEX03F | C114: Provision for Doubtful Debt
C115: Provision against doubtful tariff and non-tariff receivables.
B116: DOPEX0301F | C116: Opening balance (the carrying amount at the beginning of the period) | E116: -1320.9984
C117: Additional provisions made in the period, including increases to existing provisions
B118: DOPEX0302F | C118: Opex component | E118: 0
B119: DOPEX0303F | C119: Capex component | E119: 0
B120: DOPEX0304F | C120: Other component | E120: 0
C121: Amounts used (that is, incurred and charged against the provision) during the period
B122: DOPEX0305F | C122: Opex component | E122: 0
B123: DOPEX0306F | C123: Capex component | E123: 0
B124: DOPEX0307F | C124: Other component | E124: 0
C125: Unused amounts reversed during the period
B126: DOPEX0308F | C126: Opex component | E126: 633.5
B127: DOPEX0309F | C127: Capex component | E127: 0
B128: DOPEX0310F | C128: Other component | E128: 0
C129: The increase during the period in the discounted amount arising from the passage of time and the effect of any change in the discount rate
B130: DOPEX0311F | C130: Opex component | E130: 0
B131: DOPEX0312F | C131: Capex component | E131: 0
B132: DOPEX0313F | C132: Other component | E132: 0
B133: DOPEX0314F | C133: Closing balance (carrying amount at the end of the period) | E133: -687.4984
B134: DOPEX03G | C134: Provision for Restorations (Vegetation Management)
C135: Represents the future incremental vegetation clearance expenditure associated with network assets.
B136: DOPEX0301G | C136: Opening balance (the carrying amount at the beginning of the period) | E136: -0.466
C137: Additional provisions made in the period, including increases to existing provisions
B138: DOPEX0302G | C138: Opex component | E138: 0
B139: DOPEX0303G | C139: Capex component | E139: 0
B140: DOPEX0304G | C140: Other component | E140: 0
C141: Amounts used (that is, incurred and charged against the provision) during the period
B142: DOPEX0305G | C142: Opex component | E142: 0
B143: DOPEX0306G | C143: Capex component | E143: 0
B144: DOPEX0307G | C144: Other component | E144: 0
C145: Unused amounts reversed during the period
B146: DOPEX0308G | C146: Opex component | E146: 0
B147: DOPEX0309G | C147: Capex component | E147: 0
B148: DOPEX0310G | C148: Other component | E148: 0
C149: The increase during the period in the discounted amount arising from the passage of time and the effect of any change in the discount rate
B150: DOPEX0311G | C150: Opex component | E150: 0
B151: DOPEX0312G | C151: Capex component | E151: 0
B152: DOPEX0313G | C152: Other component | E152: 0
B153: DOPEX0314G | C153: Closing balance (carrying amount at the end of the period) | E153: -0.466
B154: DOPEX03H | C154: Provision for Redundancies
C155: Represents an estimate of employee redundancy expenditure.
B156: DOPEX0301H | C156: Opening balance (the carrying amount at the beginning of the period) | E156: -0.85566
C157: Additional provisions made in the period, including increases to existing provisions
B158: DOPEX0302H | C158: Opex component | E158: 0
B159: DOPEX0303H | C159: Capex component | E159: 0
B160: DOPEX0304H | C160: Other component | E160: 0
C161: Amounts used (that is, incurred and charged against the provision) during the period
B162: DOPEX0305H | C162: Opex component | E162: 0
B163: DOPEX0306H | C163: Capex component | E163: 0
B164: DOPEX0307H | C164: Other component | E164: 0
C165: Unused amounts reversed during the period
B166: DOPEX0308H | C166: Opex component | E166: 0
B167: DOPEX0309H | C167: Capex component | E167: 0
B168: DOPEX0310H | C168: Other component | E168: 0
C169: The increase during the period in the discounted amount arising from the passage of time and the effect of any change in the discount rate
B170: DOPEX0311H | C170: Opex component | E170: 0
B171: DOPEX0312H | C171: Capex component | E171: 0
B172: DOPEX0313H | C172: Other component | E172: 0
B173: DOPEX0314H | C173: Closing balance (carrying amount at the end of the period) | E173: -0.85566
B174: DOPEX03I | C174: Provision name
C175: Brief description of provision
B176: DOPEX0301I | C176: Opening balance (the carrying amount at the beginning of the period)
C177: Additional provisions made in the period, including increases to existing provisions
B178: DOPEX0302I | C178: Opex component
B179: DOPEX0303I | C179: Capex component
B180: DOPEX0304I | C180: Other component
C181: Amounts used (that is, incurred and charged against the provision) during the period
B182: DOPEX0305I | C182: Opex component
B183: DOPEX0306I | C183: Capex component
B184: DOPEX0307I | C184: Other component
C185: Unused amounts reversed during the period
B186: DOPEX0308I | C186: Opex component
B187: DOPEX0309I | C187: Capex component
B188: DOPEX0310I | C188: Other component
C189: The increase during the period in the discounted amount arising from the passage of time and the effect of any change in the discount rate
B190: DOPEX0311I | C190: Opex component
B191: DOPEX0312I | C191: Capex component
B192: DOPEX0313I | C192: Other component
B193: DOPEX0314I | C193: Closing balance (carrying amount at the end of the period)
B194: DOPEX03J | C194: Provision name
C195: Brief description of provision
B196: DOPEX0301J | C196: Opening balance (the carrying amount at the beginning of the period)
C197: Additional provisions made in the period, including increases to existing provisions
B198: DOPEX0302J | C198: Opex component
B199: DOPEX0303J | C199: Capex component
B200: DOPEX0304J | C200: Other component
C201: Amounts used (that is, incurred and charged against the provision) during the period
B202: DOPEX0305J | C202: Opex component
B203: DOPEX0306J | C203: Capex component
... 170 more rows

Sheet 3.3 Assets (RAB)
C1: REGULATORY REPORTING STATEMENT
C2: =TradingName -> Powercor Australia Ltd
C3: =CONCATENATE("Benchmarking RIN response ",CRY) -> Benchmarking RIN response 2014
C4: 3.3 ASSETS
E7: Network services | F7: Standard control services | G7: Alternative control services
E8: Actual ($000's)
E9: =CRY -> 2014 | F9: =CRY -> 2014 | G9: 2014
C11: TABLE 3.3.1 - REGULATORY ASSET BASE VALUES
C12: For total asset base:
A13: ED_RAB331_00001 | B13: DRAB0101 | C13: Opening value | E13: 2350575.235 | F13: 2868053.382 | G13: 18147.508
A14: ED_RAB331_00002 | B14: DRAB0102 | C14: Inflation addition | E14: 50798.28603 | F14: 61981.50727 | G14: 0
A15: ED_RAB331_00003 | B15: DRAB0103 | C15: Straight line depreciation | E15: -123402.93 | F15: -156351.6978 | G15: -1112.448
A16: ED_RAB331_00004 | B16: DRAB0104 | C16: Regulatory depreciation | E16: =SUM(E15+E14) -> -72604.64393 | F16: =SUM(F15+F14) -> -94370.19051 | G16: =SUM(G15+G14) -> -1112.448
A17: ED_RAB331_00005 | B17: DRAB0105 | C17: Actual additions (recognised in RAB) | E17: 296383.7186 | F17: 349260.0697 | G17: 4157.747
A18: ED_RAB331_00006 | B18: DRAB0106 | C18: Disposals | E18: -1474.10471 | F18: -1474.10471 | G18: 0
A19: ED_RAB331_00007 | B19: DRAB0107 | C19: Closing value for overhead distribution asset value | E19: =SUM(E13+E14+E15+E17+E18) -> 2572880.205 | F19: =SUM(F13+F14+F15+F17+F18) -> 3121469.156 | G19: =SUM(G13+G14+G15+G17+G18) -> 21192.807
C21: TABLE 3.3.2 - ASSET VALUE ROLL FORWARD
C22: For overhead network assets less than 33kV:
A23: ED_RAB3321_00001 | B23: DRAB0201 | C23: Opening value | E23: 1032242.56 | F23: 1257249.822 | G23: 0
A24: ED_RAB3321_00002 | B24: DRAB0202 | C24: Inflation addition | E24: 22307.79599 | F24: 27170.42838 | G24: 0
A25: ED_RAB3321_00003 | B25: DRAB0203 | C25: Straight line depreciation | E25: -39346.2545 | F25: -47922.91406 | G25: 0
A26: ED_RAB3321_00004 | B26: DRAB0204 | C26: Regulatory depreciation | E26: =SUM(E25+E24) -> -17038.45851 | F26: =SUM(F25+F24) -> -20752.48567 | G26: 0
A27: ED_RAB3321_00005 | B27: DRAB0205 | C27: Actual additions (recognised in RAB) | E27: 117711.8022 | F27: 143370.5102 | G27: 0
A28: ED_RAB3321_00006 | B28: DRAB0206 | C28: Disposals | E28: 0 | F28: 0 | G28: 0
A29: ED_RAB3321_00007 | B29: DRAB0207 | C29: Closing value for overhead distribution asset value | E29: =SUM(E23+E24+E25+E27+E28) -> 1132915.904 | F29: =SUM(F23+F24+F25+F27+F28) -> 1379867.847 | G29: 0
C30: For underground network assets less than 33kV:
A31: ED_RAB3322_00001 | B31: DRAB0301 | C31: Opening value | E31: 525724.0982 | F31: 640320.9428 | G31: 0
A32: ED_RAB3322_00002 | B32: DRAB0302 | C32: Inflation addition | E32: 11361.42452 | F32: 13837.97715 | G32: 0
A33: ED_RAB3322_00003 | B33: DRAB0303 | C33: Straight line depreciation | E33: -20039.16034 | F33: -24407.27766 | G33: 0
A34: ED_RAB3322_00004 | B34: DRAB0304 | C34: Regulatory depreciation | E34: =SUM(E33+E32) -> -8677.735818 | F34: =SUM(F33+F32) -> -10569.30051 | G34: 0
A35: ED_RAB3322_00005 | B35: DRAB0305 | C35: Actual additions (recognised in RAB) | E35: 59950.95869 | F35: 73019.01229 | G35: 0
A36: ED_RAB3322_00006 | B36: DRAB0306 | C36: Disposals | E36: 0 | F36: 0 | G36: 0
A37: ED_RAB3322_00007 | B37: DRAB0307 | C37: Closing value for underground asset value | E37: =SUM(E31+E32+E33+E35+E36) -> 576997.3211 | F37: =SUM(F31+F32+F33+F35+F36) -> 702770.6546 | G37: 0
C38: For distribution substations and transformers:
A39: ED_RAB3323_00001 | B39: DRAB0401 | C39: Opening value | E39: 253665.9685 | F39: 308959.8378 | G39: 0
A40: ED_RAB3323_00002 | B40: DRAB0402 | C40: Inflation addition | E40: 5481.975744 | F40: 6676.931661 | G40: 0
A41: ED_RAB3323_00003 | B41: DRAB0403 | C41: Straight line depreciation | E41: -9669.050805 | F41: -11776.70141 | G41: 0
A42: ED_RAB3323_00004 | B42: DRAB0404 | C42: Regulatory depreciation | E42: =SUM(E41+E40) -> -4187.075061 | F42: =SUM(F41+F40) -> -5099.769746 | G42: 0
A43: ED_RAB3323_00005 | B43: DRAB0405 | C43: Actual additions (recognised in RAB) | E43: 28926.8041 | F43: 35232.24165 | G43: 0
A44: ED_RAB3323_00006 | B44: DRAB0406 | C44: Disposals | E44: 0 | F44: 0 | G44: 0
A45: ED_RAB3323_00007 | B45: DRAB0407 | C45: Closing value for distribution substations and transformers asset value | E45: =SUM(E39+E40+E41+E43+E44) -> 278405.6975 | F45: =SUM(F39+F40+F41+F43+F44) -> 339092.3097 | G45: 0
C46: For overhead network assets 33kV and above:
A47: ED_RAB3324_00001 | B47: DRAB0501 | C47: Opening value | E47: 176446.0882 | F47: 214907.6406 | G47: 0
A48: ED_RAB3324_00002 | B48: DRAB0502 | C48: Inflation addition | E48: 3813.176759 | F48: 4644.369443 | G48: 0
A49: ED_RAB3324_00003 | B49: DRAB0503 | C49: Straight line depreciation | E49: -6725.640816 | F49: -8191.689676 | G49: 0
A50: ED_RAB3324_00004 | B50: DRAB0504 | C50: Regulatory depreciation | E50: =SUM(E49+E48) -> -2912.464056 | F50: =SUM(F49+F48) -> -3547.320233 | G50: 0
A51: ED_RAB3324_00005 | B51: DRAB0505 | C51: Actual additions (recognised in RAB) | E51: 20121.03341 | F51: 24506.99735 | G51: 0
A52: ED_RAB3324_00006 | B52: DRAB0506 | C52: Disposals | E52: 0 | F52: 0 | G52: 0
A53: ED_RAB3324_00007 | B53: DRAB0507 | C53: Closing value for overhead asset 33kV and above value | E53: =SUM(E47+E48+E49+E51+E52) -> 193654.6576 | F53: =SUM(F47+F48+F49+F51+F52) -> 235867.3177 | G53: 0
C54: For underground network assets 33kV and above:
A55: ED_RAB3325_00001 | B55: DRAB0601 | C55: Opening value | E55: 4747.138649 | F55: 5781.915467 | G55: 0
A56: ED_RAB3325_00002 | B56: DRAB0602 | C56: Inflation addition | E56: 102.5904227 | F56: 124.9529865 | G56: 0
A57: ED_RAB3325_00003 | B57: DRAB0603 | C57: Straight line depreciation | E57: -180.9479018 | F57: -220.3907553 | G57: 0
A58: ED_RAB3325_00004 | B58: DRAB0604 | C58: Regulatory depreciation | E58: =SUM(E57+E56) -> -78.35747918 | F58: =SUM(F57+F56) -> -95.43776881 | G58: 0
A59: ED_RAB3325_00005 | B59: DRAB0605 | C59: Actual additions (recognised in RAB) | E59: 541.3400564 | F59: 659.3408529 | G59: 0
A60: ED_RAB3325_00006 | B60: DRAB0606 | C60: Disposals | E60: 0 | F60: 0 | G60: 0
A61: ED_RAB3325_00007 | B61: DRAB0607 | C61: Closing value for underground asset 33kV and above value | E61: =SUM(E55+E56+E57+E59+E60) -> 5210.121226 | F61: =SUM(F55+F56+F57+F59+F60) -> 6345.818551 | G61: 0
C62: Zone substations and transformers
A63: ED_RAB3326_00001 | B63: DRAB0701 | C63: Opening value | E63: 134374.7865 | F63: 163665.6761 | G63: 0
A64: ED_RAB3326_00002 | B64: DRAB0702 | C64: Inflation addition | E64: 2903.973775 | F64: 3536.979248 | G64: 0
A65: ED_RAB3326_00003 | B65: DRAB0703 | C65: Straight line depreciation | E65: -5121.998214 | F65: -6238.486568 | G65: 0
A66: ED_RAB3326_00004 | B66: DRAB0704 | C66: Regulatory depreciation | E66: =SUM(E65+E64) -> -2218.024439 | F66: =SUM(F65+F64) -> -2701.50732 | G66: 0
A67: ED_RAB3326_00005 | B67: DRAB0705 | C67: Actual additions (recognised in RAB) | E67: 15323.43163 | F67: 18663.61884 | G67: 0
A68: ED_RAB3326_00006 | B68: DRAB0706 | C68: Disposals | E68: 0 | F68: 0 | G68: 0
A69: ED_RAB3326_00007 | B69: DRAB0707 | C69: Closing value for zone substations and transformers | E69: =SUM(E63+E64+E65+E67+E68) -> 147480.1937 | F69: =SUM(F63+F64+F65+F67+F68) -> 179627.7876 | G69: 0
C70: For easements:
A71: ED_RAB3327_00001 | B71: DRAB0801 | C71: Opening value
A72: ED_RAB3327_00002 | B72: DRAB0802 | C72: Inflation addition
A73: ED_RAB3327_00003 | B73: DRAB0805 | C73: Actual additions (recognised in RAB)
A74: ED_RAB3327_00004 | B74: DRAB0806 | C74: Disposals
A75: ED_RAB3327_00005 | B75: DRAB0807 | C75: Closing value for easements asset value | E75: =SUM(E71+E72+E73+E74) -> 0 | F75: =SUM(F71+F72+F73+F74) -> 0 | G75: =SUM(G71+G72+G73+G74) -> 0
C76: For meters:
A77: ED_RAB3328_00001 | B77: DRAB0901 | C77: Opening value | E77: 0 | F77: 38892.20946 | G77: 0
A78: ED_RAB3328_00002 | B78: DRAB0902 | C78: Inflation addition | E78: 0 | F78: 840.4996151 | G78: 0
A79: ED_RAB3328_00003 | B79: DRAB0903 | C79: Straight line depreciation | E79: 0 | F79: -13789.08694 | G79: 0
A80: ED_RAB3328_00004 | B80: DRAB0904 | C80: Regulatory depreciation | E80: =SUM(E79+E78) -> 0 | F80: =SUM(F79+F78) -> -12948.58732 | G80: 0
A81: ED_RAB3328_00005 | B81: DRAB0905 | C81: Actual additions (recognised in RAB) | E81: 0 | F81: 0 | G81: 0
A82: ED_RAB3328_00006 | B82: DRAB0906 | C82: Disposals | E82: 0 | F82: 0 | G82: 0
A83: ED_RAB3328_00007 | B83: DRAB0907 | C83: Closing value for meters asset value | E83: =SUM(E77+E78+E79+E81+E82) -> 0 | F83: =SUM(F77+F78+F79+F81+F82) -> 25943.62214 | G83: 0
C84: For “other” asset items with long lives:
A85: ED_RAB3329_00001 | B85: DRAB1001 | C85: Opening value | E85: 154464.1497 | F85: 169364.8915 | G85: 18147.508
A86: ED_RAB3329_00002 | B86: DRAB1002 | C86: Inflation addition | E86: 3338.125043 | F86: 3660.145002 | G86: 0
A87: ED_RAB3329_00003 | B87: DRAB1003 | C87: Straight line depreciation | E87: -20441.6634 | F87: -21926.93673 | G87: -1112.448
A88: ED_RAB3329_00004 | B88: DRAB1004 | C88: Regulatory depreciation | E88: =SUM(E87+E86) -> -17103.53836 | F88: =SUM(F87+F86) -> -18266.79173 | G88: -1112.448
A89: ED_RAB3329_00005 | B89: DRAB1005 | C89: Actual additions (recognised in RAB) | E89: 33293.05757 | F89: 33293.05757 | G89: 4157.747
A90: ED_RAB3329_00006 | B90: DRAB1006 | C90: Disposals | E90: -1474.10471 | F90: -1474.10471 | G90: 0
A91: ED_RAB3329_00007 | B91: DRAB1007 | C91: Closing value for “other” asset (long life) value | E91: =SUM(E85+E86+E87+E89+E90) -> 169179.5642 | F91: =SUM(F85+F86+F87+F89+F90) -> 182917.0526 | G91: 21192.807
C92: For “other” asset items with short lives:
A93: ED_RAB33210_00001 | B93: DRAB1101 | C93: Opening value | E93: 68910.44562 | F93: 68910.44562 | G93: 0
A94: ED_RAB33210_00002 | B94: DRAB1102 | C94: Inflation addition | E94: 1489.223776 | F94: 1489.223776 | G94: 0
A95: ED_RAB33210_00003 | B95: DRAB1103 | C95: Straight line depreciation | E95: -21878.21398 | F95: -21878.21398 | G95: 0
A96: ED_RAB33210_00004 | B96: DRAB1104 | C96: Regulatory depreciation | E96: =SUM(E95+E94) -> -20388.99021 | F96: =SUM(F95+F94) -> -20388.99021 | G96: 0
A97: ED_RAB33210_00005 | B97: DRAB1105 | C97: Actual additions (recognised in RAB) | E97: 20515.29095 | F97: 20515.29095 | G97: 0
A98: ED_RAB33210_00006 | B98: DRAB1106 | C98: Disposals | E98: 0 | F98: 0 | G98: 0
A99: ED_RAB33210_00007 | B99: DRAB1107 | C99: Closing value for “other” asset (short life) value | E99: =SUM(E93+E94+E95+E97+E98) -> 69036.74636 | F99: =SUM(F93+F94+F95+F97+F98) -> 69036.74636 | G99: 0
C101: TABLE 3.3.3 - TOTAL DISAGGREGATED RAB ASSET VALUES
A102: ED_RAB333_00001 | B102: DRAB1201 | C102: Overhead distribution assets (wires and poles) | E102: 1082579.232 | F102: 1318558.835 | G102: 0
A103: ED_RAB333_00002 | B103: DRAB1202 | C103: Underground distribution assets (cables, ducts etc) | E103: 551360.7097 | F103: 671545.7987 | G103: 0
A104: ED_RAB333_00003 | B104: DRAB1203 | C104: Distribution substations including transformers | E104: 266035.833 | F104: 324026.0737 | G104: 0
A105: ED_RAB333_00004 | B105: DRAB1204 | C105: Overhead assets 33kV and above (wires and towers / poles etc) | E105: 185050.3729 | F105: 225387.4792 | G105: 0
A106: ED_RAB333_00005 | B106: DRAB1205 | C106: Underground assets 33kV and above (cables, ducts etc) | E106: 4978.629937 | F106: 6063.867009 | G106: 0
A107: ED_RAB333_00006 | B107: DRAB1206 | C107: Zone substations | E107: 140927.4901 | F107: 171646.7319 | G107: 0
A108: ED_RAB333_00007 | B108: DRAB1207 | C108: Easements | E108: 0 | F108: 0
A109: ED_RAB333_00008 | B109: DRAB1208 | C109: Meters | E109: 0 | F109: 32417.9158 | G109: 0
A110: ED_RAB333_00009 | B110: DRAB1209 | C110: Other assets with long lives (please specify) | E110: 161821.8569 | F110: 176140.972 | G110: 19670.157
A111: ED_RAB333_00010 | B111: DRAB1210 | C111: Other assets with short lives (please specify) | E111: 68973.59599 | F111: 68973.59599 | G111: 0
C113: Capital Contributions
A114: ED_RAB333_00011 | B114: DRAB13 | C114: Value of Capital Contributions or Contributed Assets | E114: 0 | F114: 0 | G114: 0
C116: TABLE 3.3.4 - ASSET LIVES | E116: Service Life (Years)
C117: Table 3.3.4.1 Asset Lives – estimated service life of new assets | E117: =CRY -> 2014 | F117: =CRY -> 2014 | G117: 2014
A118: ED_RAB3341_00001 | B118: DRAB1401 | C118: Overhead network assets less than 33kV (wires and poles) | E118: 50.9 | F118: 50.9 | G118: 0
A119: ED_RAB3341_00002 | B119: DRAB1402 | C119: Underground network assets less than 33kV (cables) | E119: 50.9 | F119: 50.9 | G119: 0
A120: ED_RAB3341_00003 | B120: DRAB1403 | C120: Distribution substations including transformers | E120: 50.9 | F120: 50.9 | G120: 0
A121: ED_RAB3341_00004 | B121: DRAB1404 | C121: Overhead network assets 33kV and above (wires and towers / poles etc) | E121: 50.9 | F121: 50.9 | G121: 0
A122: ED_RAB3341_00005 | B122: DRAB1405 | C122: Underground network assets 33kV and above(cables, ducts etc) | E122: 50.9 | F122: 50.9 | G122: 0
A123: ED_RAB3341_00006 | B123: DRAB1406 | C123: Zone substations and transformers | E123: 50.9 | F123: 50.9 | G123: 0
A124: ED_RAB3341_00007 | B124: DRAB1407 | C124: Meters | E124: 0 | F124: 0 | G124: 0
A125: ED_RAB3341_00008 | B125: DRAB1408 | C125: “Other” assets with long lives | E125: 14.9 | F125: 14.9 | G125: 23
A126: ED_RAB3341_00009 | B126: DRAB1409 | C126: “Other” assets with short lives | E126: 6 | F126: 6 | G126: 0
C128: Table 3.3.4.2 Asset Lives – estimated residual service life
A129: ED_RAB3342_00001 | B129: DRAB1501 | C129: Overhead network assets less than 33kV (wires and poles) | E129: 26.92805581 | F129: 26.92805581 | G129: 0
A130: ED_RAB3342_00002 | B130: DRAB1502 | C130: Underground network assets less than 33kV (cables) | E130: 26.92805581 | F130: 26.92805581 | G130: 0
A131: ED_RAB3342_00003 | B131: DRAB1503 | C131: Distribution substations including transformers | E131: 26.92805581 | F131: 26.92805581 | G131: 0
A132: ED_RAB3342_00004 | B132: DRAB1504 | C132: Overhead network assets 33kV and above (wires and towers / poles etc) | E132: 26.92805581 | F132: 26.92805581 | G132: 0
A133: ED_RAB3342_00005 | B133: DRAB1505 | C133: Underground network assets 33kV and above (cables, ducts etc) | E133: 26.92805581 | F133: 26.92805581 | G133: 0
A134: ED_RAB3342_00006 | B134: DRAB1506 | C134: Zone substations and transformers | E134: 26.92805581 | F134: 26.92805581 | G134: 0
A135: ED_RAB3342_00007 | B135: DRAB1507 | C135: Meters | E135: 2.877029686 | F135: 2.877029686 | G135: 0
A136: ED_RAB3342_00008 | B136: DRAB1508 | C136: “Other” assets with long lives | E136: 7.48171623 | F136: 7.733130522 | G136: 16.313
A137: ED_RAB3342_00009 | B137: DRAB1509 | C137: “Other” assets with short lives | E137: 3.212849848 | F137: 3.212849848 | G137: 0

Sheet 3.4 Operational data
C1: REGULATORY REPORTING STATEMENT
C2: =TradingName -> Powercor Australia Ltd
C3: =CONCATENATE("Benchmarking RIN response ",CRY) -> Benchmarking RIN response 2014
C4: 3.4 OPERATIONAL DATA
E7: Standard control services
E8: Actual
E9: =CRY -> 2014
D10: Unit
C11: TABLE 3.4.1 - ENERGY DELIVERY
A12: ED_OPD3410_00001 | B12: DOPED01 | C12: Total energy delivered | D12: GWh | E12: 10332.96191
C15: Table 3.4.1.1 Energy grouping - delivery by chargeable quantity
A16: ED_OPD3411_00001 | B16: DOPED0201 | C16: Energy Delivery where time of use is not a determinant | D16: GWh | E16: 2319.489655
A17: ED_OPD3411_00002 | B17: DOPED0202 | C17: Energy Delivery at On-peak times | D17: GWh | E17: 4057.755826
A18: ED_OPD3411_00003 | B18: DOPED0203 | C18: Energy Delivery at Shoulder times | D18: GWh | E18: 4.020182256
A19: ED_OPD3411_00004 | B19: DOPED0204 | C19: Energy Delivery at Off-peak times | D19: GWh | E19: 3465.225699
A20: ED_OPD3411_00005 | B20: DOPED0205 | C20: Controlled load energy deliveries | D20: GWh | E20: 381.837211
A21: ED_OPD3411_00005 | B21: DOPED0206 | C21: Energy Delivery to unmetered supplies | D21: GWh | E21: 104.6329165
C23: Table 3.4.1.2 Energy - received from TNSP and other DNSPs by time of receipt
A24: ED_OPD3412_00001 | B24: DOPED0301 | C24: Energy into DNSP network at On-peak times | D24: GWh | E24: 5423.14
A25: ED_OPD3412_00002 | B25: DOPED0302 | C25: Energy into DNSP network at Shoulder times | D25: GWh | E25: 0
A26: ED_OPD3412_00003 | B26: DOPED0303 | C26: Energy into DNSP network at Off-peak times | D26: GWh | E26: 4966.06
A27: ED_OPD3412_00004 | B27: DOPED0304 | C27: Energy received from TNSP and other DNSPs not included in the above categories | D27: GWh | E27: 8.693628273
C29: Table 3.4.1.3 Energy - received into DNSP system from embedded generation by time of receipt
A30: ED_OPD3413_00001 | B30: DOPED0401 | C30: Energy into DNSP network at On-peak times from non-residential embedded generation | D30: GWh | E30: 296.6944432
A31: ED_OPD3413_00002 | B31: DOPED0402 | C31: Energy into DNSP network at Shoulder times from non-residential embedded generation | D31: GWh | E31: 0
A32: ED_OPD3413_00003 | B32: DOPED0403 | C32: Energy into DNSP network at Off-peak times from non-residential embedded generation | D32: GWh | E32: 294.8218675
A33: ED_OPD3413_00004 | B33: DOPED0404 | C33: Energy received from embedded generation not included in above categories from non-residential embedded generation | D33: GWh | E33: 0
A34: ED_OPD3413_00005 | B34: DOPED0405 | C34: Energy into DNSP network at On-peak times from residential embedded generation | D34: GWh | E34: 52.96844523
A35: ED_OPD3413_00006 | B35: DOPED0406 | C35: Energy into DNSP network at Shoulder times from residential embedded generation | D35: GWh | E35: 0
A36: ED_OPD3413_00007 | B36: DOPED0407 | C36: Energy into DNSP network at Off-peak times from residential embedded generation | D36: GWh | E36: 21.56148954
A37: ED_OPD3413_00008 | B37: DOPED0408 | C37: Energy received from embedded generation not included in above categories from residential embedded generation | D37: GWh | E37: 0
C39: Table 3.4.1.4 Energy grouping - customer type or class
A40: ED_OPD3414_00001 | B40: DOPED0501 | C40: Residential customers energy deliveries | D40: GWh | E40: 3298.128863
A41: ED_OPD3414_00002 | B41: DOPED0502 | C41: Non residential customers not on demand tariffs energy deliveries | D41: GWh | E41: 2089.649562
A42: ED_OPD3414_00003 | B42: DOPED0503 | C42: Non-residential low voltage demand tariff customers energy deliveries | D42: GWh | E42: 2287.585761
A43: ED_OPD3414_00004 | B43: DOPED0504 | C43: Non-residential high voltage demand tariff customers energy deliveries | D43: GWh | E43: 2657.597728
A44: ED_OPD3414_00005 | B44: DOPED0505 | C44: Other Customer Class Energy Deliveries | D44: GWh | E44: 0
C46: TABLE 3.4.2 - CUSTOMER NUMBERS
C47: Table 3.4.2.1 Distribution customer numbers by customer type or class
A48: ED_OPD3421_00001 | B48: DOPCN0101 | C48: Residential customer numbers | D48: number | E48: 658280.1943
A49: ED_OPD3421_00002 | B49: DOPCN0102 | C49: Non residential customers not on demand tariff customer numbers | D49: number | E49: 97787.34031
A50: ED_OPD3421_00003 | B50: DOPCN0103 | C50: Low voltage demand tariff customer numbers | D50: number | E50: 2552.073359
A51: ED_OPD3421_00004 | B51: DOPCN0104 | C51: High voltage demand tariff customer numbers | D51: number | E51: 180.5211391
A52: ED_OPD3421_00005 | B52: DOPCN0105 | C52: Unmetered Customer Numbers | D52: number | E52: 6440.609942
A53: ED_OPD3421_00006 | B53: DOPCN0106 | C53: Other Customer Numbers | D53: number | E53: 0
A54: ED_OPD3421_99999 | B54: DOPCN01 | C54: Total customer numbers | D54: number | E54: =SUM(E48:E53) -> 765240.739
C56: Table 3.4.2.2 Distribution customer numbers by location on the network
A57: ED_OPD3422_00001 | B57: DOPCN0201 | C57: Customers on CBD network | D57: number | E57: 0
A58: ED_OPD3422_00002 | B58: DOPCN0202 | C58: Customers on Urban network | D58: number | E58: 303736.0625
A59: ED_OPD3422_00003 | B59: DOPCN0203 | C59: Customers on Short rural network | D59: number | E59: 287869.2498
A60: ED_OPD3422_00004 | B60: DOPCN0204 | C60: Customers on Long rural network | D60: number | E60: 173635.4267
A61: ED_OPD3422_99999 | B61: DOPCN02 | C61: Total customer numbers | D61: number | E61: =SUM(E57:E60) -> 765240.739
C63: Table 3.4.2.3 Distribution customer numbers by Aurora Feeder categories (Aurora only)
A64: ED_OPD3423_00001 | C64: Critical Infrastructure | D64: number
A65: ED_OPD3423_00002 | C65: High Density Commercial | D65: number
A66: ED_OPD3423_00003 | C66: Urban | D66: number
A67: ED_OPD3423_00004 | C67: High Density Rural | D67: number
A68: ED_OPD3423_00005 | C68: Low Density Rural | D68: number
A69: ED_OPD3423_99999 | C69: Total customer numbers | D69: number | E69: =SUM(E64:E68) -> 0
C71: Table 3.4.2.4 Unmetered Supply (Aurora only)
A72: ED_OPD3424_00001 | B72: DOPCN0301 | C72: Number of unmetered connections reported in customer numbers in the economic benchmarking RIN | D72: number
A73: ED_OPD3424_00002 | B73: DOPCN0302 | C73: Unmetered connections not reported in customer numbers in the economic benchmarking RIN | D73: number
A74: ED_OPD3424_99999 | B74: DOPCN0303 | C74: Total unmetered connections | D74: number
C76: TABLE 3.4.3 - SYSTEM DEMAND
C77: Table 3.4.3.1 Annual system maximum demand characteristics at the zone substation level – MW measure
A78: ED_OPD3431_00001 | B78: DOPSD0101 | C78: Non-coincident Summated Raw System Annual Maximum Demand | D78: MW | E78: 2483.53009
A79: ED_OPD3431_00002 | B79: DOPSD0102 | C79: Non–coincident Summated Weather Adjusted System Annual Maximum Demand 10% POE | D79: MW | E79: 2569.755
A80: ED_OPD3431_00003 | B80: DOPSD0103 | C80: Non–coincident Summated Weather Adjusted System Annual Maximum Demand 50% POE | D80: MW | E80: 2359.595
A81: ED_OPD3431_00004 | B81: DOPSD0104 | C81: Coincident Raw System Annual Maximum Demand | D81: MW | E81: 2223.32919
A82: ED_OPD3431_00005 | B82: DOPSD0105 | C82: Coincident Weather Adjusted System Annual Maximum Demand 10% POE | D82: MW | E82: 2300.520266
A83: ED_OPD3431_00006 | B83: DOPSD0106 | C83: Coincident Weather Adjusted System Annual Maximum Demand 50% POE | D83: MW | E83: 2112.378852
C85: Table 3.4.3.2 Annual system maximum demand characteristics at the transmission connection point – MW measure
A86: ED_OPD3432_00001 | B86: DOPSD0107 | C86: Non-coincident Summated Raw System Annual Maximum Demand | D86: MW | E86: 2571.31
A87: ED_OPD3432_00002 | B87: DOPSD0108 | C87: Non–coincident Summated Weather Adjusted System Annual Maximum Demand 10% POE | D87: MW | E87: 2660.9
A88: ED_OPD3432_00003 | B88: DOPSD0109 | C88: Non–coincident Summated Weather Adjusted System Annual Maximum Demand 50% POE | D88: MW | E88: 2388.6
A89: ED_OPD3432_00004 | B89: DOPSD0110 | C89: Coincident Raw System Annual Maximum Demand | D89: MW | E89: 2343.50489
A90: ED_OPD3432_00005 | B90: DOPSD0111 | C90: Coincident Weather Adjusted System Annual Maximum Demand 10% POE | D90: MW | E90: 2425.157667
A91: ED_OPD3432_00006 | B91: DOPSD0112 | C91: Coincident Weather Adjusted System Annual Maximum Demand 50% POE | D91: MW | E91: 2176.982075
C93: Table 3.4.3.3 Annual system maximum demand characteristics at the zone substation level – MVA measure
A94: ED_OPD3433_00001 | B94: DOPSD0201 | C94: Non–coincident Summated Raw System Annual Maximum Demand | D94: MVA | E94: 2541.69554
A95: ED_OPD3433_00002 | B95: DOPSD0202 | C95: Non–coincident Summated Weather Adjusted System Annual Maximum Demand 10% POE | D95: MVA | E95: 2628.69726
A96: ED_OPD3433_00003 | B96: DOPSD0203 | C96: Non–coincident Summated Weather Adjusted System Annual Maximum Demand 50% POE | D96: MVA | E96: 2411.299261
A97: ED_OPD3433_00004 | B97: DOPSD0204 | C97: Coincident Raw System Annual Maximum Demand | D97: MVA | E97: 2268.072553
A98: ED_OPD3433_00005 | B98: DOPSD0205 | C98: Coincident Weather Adjusted System Annual Maximum Demand 10% POE | D98: MVA | E98: 2345.708214
A99: ED_OPD3433_00006 | B99: DOPSD0206 | C99: Coincident Weather Adjusted System Annual Maximum Demand 50% POE | D99: MVA | E99: 2151.713919
C101: Table 3.4.3.4 Annual system maximum demand characteristics at the transmission connection point – MVA measure
A102: ED_OPD3434_00001 | B102: DOPSD0207 | C102: Non–coincident Summated Raw System Annual Maximum Demand | D102: MVA | E102: 2673.551268
A103: ED_OPD3434_00002 | B103: DOPSD0208 | C103: Non–coincident Summated Weather Adjusted System Annual Maximum Demand 10% POE | D103: MVA | E103: 2766.703575
A104: ED_OPD3434_00003 | B104: DOPSD0209 | C104: Non–coincident Summated Weather Adjusted System Annual Maximum Demand 50% POE | D104: MVA | E104: 2483.576294
A105: ED_OPD3434_00004 | B105: DOPSD0210 | C105: Coincident Raw System Annual Maximum Demand | D105: MVA | E105: 2451.50764
A106: ED_OPD3434_00005 | B106: DOPSD0211 | C106: Coincident Weather Adjusted System Annual Maximum Demand 10% POE | D106: MVA | E106: 2536.923467
A107: ED_OPD3434_00006 | B107: DOPSD0212 | C107: Coincident Weather Adjusted System Annual Maximum Demand 50% POE | D107: MVA | E107: 2277.310456
C109: Table 3.4.3.5 Power factor conversion between MVA and MW
A110: ED_OPD3435_00001 | B110: DOPSD0301 | C110: Average overall network power factor conversion between MVA and MW | D110: Factor | E110: 0.95594
A111: ED_OPD3435_00002 | B111: DOPSD0302 | C111: Average power factor conversion for low voltage distribution lines | D111: Factor | E111: 0.85
A112: ED_OPD3435_00003 | B112: DOPSD0303 | C112: Average power factor conversion for 3.3 kV lines | D112: Factor | E112: 0
A113: ED_OPD3435_00004 | B113: DOPSD0304 | C113: Average power factor conversion for 6.6 kV lines | D113: Factor | E113: 0
A114: ED_OPD3435_00005 | B114: DOPSD0305 | C114: Average power factor conversion for 7.6 kV lines | D114: Factor | E114: 0
A115: ED_OPD3435_00006 | B115: DOPSD0306 | C115: Average power factor conversion for 11 kV lines | D115: Factor | E115: 0.9
A116: ED_OPD3435_00007 | B116: DOPSD0307 | C116: Average power factor conversion for SWER lines | D116: Factor | E116: 0.9
A117: ED_OPD3435_00008 | B117: DOPSD0308 | C117: Average power factor conversion for 22 kV lines | D117: Factor | E117: 0.9
A118: ED_OPD3435_00009 | B118: DOPSD0309 | C118: Average power factor conversion for 33 kV lines | D118: Factor | E118: 0
A119: ED_OPD3435_00010 | B119: DOPSD0310 | C119: Average power factor conversion for 44 kV lines | D119: Factor | E119: 0
A120: ED_OPD3435_00011 | B120: DOPSD0311 | C120: Average power factor conversion for 66 kV lines | D120: Factor | E120: 0.95
A121: ED_OPD3435_00012 | B121: DOPSD0312 | C121: Average power factor conversion for 110 kV lines | D121: Factor | E121: 0
A122: ED_OPD3435_00013 | B122: DOPSD0313 | C122: Average power factor conversion for 132 kV lines | D122: Factor | E122: 0
A123: ED_OPD3435_00013 | B123: DOPSD0314 | C123: Average power factor conversion for 220 kV lines | D123: Factor | E123: 0
C125: Table 3.4.3.6 Demand supplied (for customers charged on this basis) – MW measure
A126: ED_OPD3436_00001 | B126: DOPSD0401 | C126: Summated Chargeable Contracted Maximum Demand | D126: MW | E126: 1681.175483
A127: ED_OPD3436_00002 | B127: DOPSD0402 | C127: Summated Chargeable Measured Maximum Demand | D127: MW | E127: 0
C128: Table 3.4.3.7 Demand supplied (for customers charged on this basis) – MVA measure
A129: ED_OPD3437_00001 | B129: DOPSD0403 | C129: Summated Chargeable Contracted Maximum Demand | D129: MVA | E129: 0
A130: ED_OPD3437_00002 | B130: DOPSD0404 | C130: Summated Chargeable Measured Maximum Demand | D130: MVA | E130: 0

Sheet 3.5 Physical assets
C1: REGULATORY REPORTING STATEMENT
C2: =TradingName -> Powercor Australia Ltd
C3: =CONCATENATE("Benchmarking RIN response ",CRY) -> Benchmarking RIN response 2014
C4: 3.5 PHYSICAL ASSETS
E8: Actual
E9: =CRY -> 2014
D10: Unit
C11: TABLE 3.5.1 - NETWORK CAPACITIES
C12: Circuit length
C13: Table 3.5.1.1 Overhead network length of circuit at each voltage
A14: ED_PHA3511_00001 | B14: DPA0101 | C14: Overhead low voltage distribution | D14: km | E14: 9664.19741
A15: ED_PHA3511_00002 | B15: DPA0102 | C15: Overhead 2.2 kV | D15: km | E15: 0
A16: ED_PHA3511_00003 | B16: DPA0103 | C16: Overhead 6.6kv | D16: km | E16: 0
A17: ED_PHA3511_00004 | B17: DPA0104 | C17: Overhead 7.6 kV | D17: km | E17: 0
A18: ED_PHA3511_00005 | B18: DPA0105 | C18: Overhead 11 kV | D18: km | E18: 53.29753
A19: ED_PHA3511_00006 | B19: DPA0106 | C19: Overhead SWER | D19: km | E19: 21631.90664
A20: ED_PHA3511_00007 | B20: DPA0107 | C20: Overhead 22 kV | D20: km | E20: 34489.00963
A21: ED_PHA3511_00008 | B21: DPA0108 | C21: Overhead 33 kV | D21: km | E21: 0
A22: ED_PHA3511_00009 | B22: DPA0109 | C22: Overhead 44 kV | D22: km | E22: 0
A23: ED_PHA3511_00010 | B23: DPA0110 | C23: Overhead 66 kV | D23: km | E23: 3094.62158
A24: ED_PHA3511_00011 | B24: DPA0111 | C24: Overhead 110kV | D24: km | E24: 0
A25: ED_PHA3511_00012 | B25: DPA0112 | C25: Overhead 132 kV | D25: km | E25: 0
A26: ED_PHA3511_00013 | B26: DPA0113 | C26: Overhead 220kV | D26: km | E26: 0
A27: ED_PHA3511_00014 | B27: DPA0114 | C27: Other | D27: km | E27: 0
B28: DPA01 | C28: Total overhead circuit km | D28: km | E28: =SUM(E14:E27) -> 68933.03279
C30: Table 3.5.1.2 Underground network circuit length at each voltage
A31: ED_PHA3512_00001 | B31: DPA0201 | C31: Underground low voltage distribution | D31: km | E31: 3621.48764
A32: ED_PHA3512_00002 | B32: DPA0202 | C32: Underground 5 kV | D32: km | E32: 0
A33: ED_PHA3512_00003 | B33: DPA0203 | C33: Underground 6.6 Kv | D33: km | E33: 0
A34: ED_PHA3512_00004 | B34: DPA0204 | C34: Underground 7.6 kV | D34: km | E34: 0
A35: ED_PHA3512_00005 | B35: DPA0205 | C35: Underground 11 kV | D35: km | E35: 16.656875
A36: ED_PHA3512_00006 | B36: DPA0206 | C36: Underground SWER | D36: km | E36: 74.92545
A37: ED_PHA3512_00007 | B37: DPA0207 | C37: Underground 22 kV | D37: km | E37: 1531.754134
A38: ED_PHA3512_00008 | B38: DPA0208 | C38: Underground 33 kV | D38: km | E38: 0
A39: ED_PHA3512_00010 | B39: DPA0209 | C39: Underground 66 kV | D39: km | E39: 3.58225
A40: ED_PHA3512_00009 | B40: DPA0210 | C40: Underground 110 kV | D40: km | E40: 0
A41: ED_PHA3512_00010 | B41: DPA0211 | C41: Underground 132 kV | D41: km | E41: 0
A42: ED_PHA3512_00011 | B42: DPA0212 | C42: Other | D42: km | E42: 0
B43: DPA02 | C43: Total underground circuit km | D43: km | E43: =SUM(E31:E42) -> 5248.406349
C45: Circuit Capacity MVA
C46: Table 3.5.1.3 Estimated overhead network weighted average MVA capacity by voltage class
A47: ED_PHA3513_00001 | B47: DPA0301 | C47: Overhead low voltage distribution | D47: MVA | E47: 0.2
A48: ED_PHA3513_00002 | B48: DPA0302 | C48: Overhead 6.6 kV | D48: MVA | E48: 0
A49: ED_PHA3513_00003 | B49: DPA0303 | C49: Overhead 7.6 kV | D49: MVA | E49: 0
A50: ED_PHA3513_00004 | B50: DPA0304 | C50: Overhead 11 kV | D50: MVA | E50: 4
A51: ED_PHA3513_00005 | B51: DPA0305 | C51: Overhead SWER | D51: MVA | E51: 0.08
A52: ED_PHA3513_00006 | B52: DPA0306 | C52: Overhead 22 kV | D52: MVA | E52: 8
A53: ED_PHA3513_00007 | B53: DPA0307 | C53: Overhead 33 kV | D53: MVA | E53: 0
A54: ED_PHA3513_00008 | B54: DPA0308 | C54: Overhead 44 kV | D54: MVA | E54: 0
A55: ED_PHA3513_00009 | B55: DPA0309 | C55: Overhead 66 kV | D55: MVA | E55: 50
A56: ED_PHA3513_00010 | B56: DPA0310 | C56: Overhead 110 kV | D56: MVA | E56: 0
A57: ED_PHA3513_00011 | B57: DPA0311 | C57: Overhead 132 kV | D57: MVA | E57: 0
A58: ED_PHA3513_00012 | B58: DPA0312 | C58: Overhead 220 kV | D58: MVA | E58: 0
A59: ED_PHA3513_00013 | B59: DPA0313 | C59: Other | D59: MVA | E59: 0
C61: Table 3.5.1.4 Estimated underground network weighted average MVA capacity by voltage class
A62: ED_PHA3514_00001 | B62: DPA0401 | C62: Underground low voltage distribution | D62: MVA | E62: 0.2
A63: ED_PHA3514_00002 | B63: DPA0402 | C63: Underground 5 kV | D63: MVA | E63: 0
A64: ED_PHA3514_00003 | B64: DPA0403 | C64: Underground 6.6 kV | D64: MVA | E64: 0
A65: ED_PHA3514_00004 | B65: DPA0404 | C65: Underground 7.6 kV | D65: MVA | E65: 0
A66: ED_PHA3514_00005 | B66: DPA0405 | C66: Underground 11 kV | D66: MVA | E66: 4
A67: ED_PHA3514_00006 | B67: DPA0406 | C67: Underground SWER | D67: MVA | E67: 0.08
A68: ED_PHA3514_00007 | B68: DPA0407 | C68: Underground 12.7 kV | D68: MVA | E68: 0
A69: ED_PHA3514_00008 | B69: DPA0408 | C69: Underground 22 kV | D69: MVA | E69: 8
A70: ED_PHA3514_00009 | B70: DPA0409 | C70: Underground 33 kV | D70: MVA | E70: 0
A71: ED_PHA3514_00010 | B71: DPA0410 | C71: Underground 66 kV | D71: MVA | E71: 60
A72: ED_PHA3514_00010 | B72: DPA0411 | C72: Underground 110 kV | D72: MVA | E72: 0
A73: ED_PHA3514_00011 | B73: DPA0412 | C73: Underground 132 kV | D73: MVA | E73: 0
A74: ED_PHA3514_00012 | B74: DPA0413 | C74: Other | D74: MVA | E74: 0
C76: TABLE 3.5.2 - TRANSFORMER CAPACITIES
C77: Table 3.5.2.1 Distribution transformer total installed capacity
A78: ED_PHA3521_00001 | B78: DPA0501 | C78: Distribution transformer capacity owned by utility | D78: MVA | E78: 6757.59
A79: ED_PHA3521_00002 | B79: DPA0502 | C79: Distribution transformer capacity owned by High Voltage Customers | D79: MVA | E79: 389.2
A80: ED_PHA3521_00003 | B80: DPA0503 | C80: Cold spare capacity included in DPA0501 | D80: MVA | E80: 65.9
C82: Table 3.5.2.2 Zone substation transformer capacity
A83: ED_PHA3522_00001 | B83: DPA0601 | C83: Total installed capacity for first step transformation where there are two steps to reach distribution voltage | D83: MVA | E83: 0
A84: ED_PHA3522_00002 | B84: DPA0602 | C84: Total installed capacity for second step transformation where there are two steps to reach distribution voltage | D84: MVA | E84: 0
A85: ED_PHA3522_00003 | B85: DPA0603 | C85: Total zone substation transformer capacity where there is only a single step transformation to reach distribution voltage | D85: MVA | E85: 3270
A86: ED_PHA3522_00004 | B86: DPA0604 | C86: Total zone substation transformer capacity | D86: MVA | E86: 3349
A87: ED_PHA3522_00005 | B87: DPA0605 | C87: Cold spare capacity of zone substation transformers included in DPA0604 | D87: MVA | E87: 79
C89: Table 3.5.2.3 Distribution - other transformer capacity
A90: ED_PHA3523_00001 | C90: Distribution other - transformer capacity owned by utility | D90: MVA | E90: 0
C92: TABLE 3.5.3 - PUBLIC LIGHTING
A93: ED_PHA353_00001 | B93: DPA0701 | C93: Public lighting luminaires | D93: Number | E93: 159229
A94: ED_PHA353_00002 | B94: DPA0702 | C94: Public lighting poles | D94: Number | E94: 73685
A95: ED_PHA353_00003 | B95: DPA0703 | C95: Public lighting columns | D95: Number | E95: 0

Sheet 3.6 Quality of service
C1: REGULATORY REPORTING STATEMENT
C2: =TradingName -> Powercor Australia Ltd
C3: =CONCATENATE("Benchmarking RIN response ",CRY) -> Benchmarking RIN response 2014
C4: 3.6 QUALITY OF SERVICE DATA
E8: Actual
E9: =CRY -> 2014
D10: Unit
C11: TABLE 3.6.1 - RELIABILITY
C12: Table 3.6.1.1 Inclusive of MEDs
A13: ED_QOS3611_00001 | B13: DQS0101 | C13: Whole of network unplanned SAIDI | D13: minutes/customer | E13: 197.4531278
A14: ED_QOS3611_00002 | B14: DQS0102 | C14: Whole of network unplanned SAIDI excluding excluded outages | D14: minutes/customer | E14: 195.9037816
A15: ED_QOS3611_00003 | B15: DQS0103 | C15: Whole of network unplanned SAIFI | D15: interruptions/customer | E15: 1.773659693
A16: ED_QOS3611_00004 | B16: DQS0104 | C16: Whole of network unplanned SAIFI excluding excluded outages | D16: interruptions/customer | E16: 1.748206331
C17: Table 3.6.1.2 Exclusive of MEDs
A18: ED_QOS3612_00001 | B18: DQS0105 | C18: Whole of network unplanned SAIDI | D18: minutes/customer | E18: 167.776356
A19: ED_QOS3612_00002 | B19: DQS0106 | C19: Whole of network unplanned SAIDI excluding excluded outages | D19: minutes/customer | E19: 166.2270097
A20: ED_QOS3612_00003 | B20: DQS0107 | C20: Whole of network unplanned SAIFI | D20: interruptions/customer | E20: 1.626289768
A21: ED_QOS3612_00004 | B21: DQS0108 | C21: Whole of network unplanned SAIFI excluding excluded outages | D21: interruptions/customer | E21: 1.600836406
C23: TABLE 3.6.2 - ENERGY NOT SUPPLIED
A24: ED_QOS362_00001 | B24: DQS0201 | C24: Energy Not Supplied (planned) | D24: GWh | E24: 1.023584
A25: ED_QOS362_00002 | B25: DQS0202 | C25: Energy Not Supplied (unplanned) | D25: GWh | E25: 3.20102267
B26: DQS02 | C26: Total | D26: GWh | E26: =SUM(E24:E25) -> 4.22460667
C28: TABLE 3.6.3 - SYSTEM LOSSES
A29: ED_QOS363_00001 | B29: DQS03 | C29: System losses | D29: % | E29: 0.06556
C31: TABLE 3.6.4 - CAPACITY UTILISATION
A32: ED_QOS364_00001 | B32: DQS04 | C32: Overall utilisation | D32: % | E32: 0.7589416363

Sheet 3.7 Operating environment
C1: REGULATORY REPORTING STATEMENT
C2: =TradingName -> Powercor Australia Ltd
C3: =CONCATENATE("Benchmarking RIN response ",CRY) -> Benchmarking RIN response 2014
C4: 3.7 OPERATING ENVIRONMENT FACTORS
E8: Actual
E9: =CRY -> 2014
C11: TABLE 3.7.1 - DENSITY FACTORS
A12: ED_OEF371_00001 | B12: DOEF0101 | C12: Customer density | D12: Customer / km | E12: 11.42048473
A13: ED_OEF371_00002 | B13: DOEF0102 | C13: Energy density | D13: MWh/customer | E13: 13.5028859
A14: ED_OEF371_00003 | B14: DOEF0103 | C14: Demand density | D14: kVA / customer | E14: 3.321431471
C16: TABLE 3.7.2 - TERRAIN FACTORS
A17: ED_OEF372_00001 | B17: DOEF0201 | C17: Rural proportion | D17: % | E17: 0.92
A18: ED_OEF372_00002 | B18: DOEF0202 | C18: Urban and CBD vegetation maintenance spans | D18: Number of spans | E18: 4415
A19: ED_OEF372_00003 | B19: DOEF0203 | C19: Rural vegetation maintenance spans | D19: Number of spans | E19: 41590
A20: ED_OEF372_00004 | B20: DOEF0204 | C20: Total vegetation maintenance spans | D20: Number of spans | E20: 46005
A21: ED_OEF372_00005 | B21: DOEF0205 | C21: Total number of spans | D21: Number of spans | E21: 550584
A22: ED_OEF372_00006 | B22: DOEF0206 | C22: Average urban and CBD vegetation maintenance span cycle | D22: Years | E22: 1.85
A23: ED_OEF372_00007 | B23: DOEF0207 | C23: Average rural vegetation maintenance span cycle | D23: Years | E23: 1.92
A24: ED_OEF372_00008 | B24: DOEF0208 | C24: Average number of trees per urban and CBD vegetation maintenance span | D24: Trees | E24: 2.079
A25: ED_OEF372_00009 | B25: DOEF0209 | C25: Average number of trees per rural vegetation maintenance span | D25: Trees | E25: 5.558
A26: ED_OEF372_00010 | B26: DOEF0210 | C26: Average number of defects per urban and CBD vegetation maintenance span | D26: Defects | E26: 1.31
A27: ED_OEF372_00011 | B27: DOEF0211 | C27: Average number of defects per rural vegetation maintenance span | D27: Defects | E27: 2.99
A28: ED_OEF372_00012 | B28: DOEF0212 | C28: Tropical proportion | D28: Spans | E28: 0
A29: ED_OEF372_00013 | B29: DOEF0213 | C29: Standard vehicle access | D29: km | E29: 4402
A30: ED_OEF372_00014 | B30: DOEF0214 | C30: Bushfire risk | D30: Spans | E30: 280469
C32: TABLE 3.7.3 - SERVICE AREA FACTORS
A33: ED_OEF373_00001 | B33: DOEF0301 | C33: Route Line length | D33: km | E33: 67006

Sheet 3.7.4 Weather stations
C1: REGULATORY REPORTING STATEMENT
C2: =TradingName -> Powercor Australia Ltd
C3: =CONCATENATE("Benchmarking RIN response ",CRY) -> Benchmarking RIN response 2014
C4: 3.7 OPERATING ENVIRONMENT FACTORS
C7: TABLE 3.7.4 - WEATHER STATIONS
C9: Weather Station ID | D9: Post code | E9: Suburb | F9: Materiality
A10: ED_OEF374_00001 | C10: 76031 | D10: 3500 | E10: MILDURA | F10: Yes
A11: ED_OEF374_00002 | C11: 76064 | D11: 3507 | E11: WALEUP | F11: Yes
A12: ED_OEF374_00003 | C12: 77010 | D12: 3396 | E12: HOPETOUN | F12: Yes
A13: ED_OEF374_00004 | C13: 77094 | D13: 3585 | E13: SWAN HILL | F13: Yes
A14: ED_OEF374_00005 | C14: 78015 | D14: 3418 | E14: NHILL | F14: Yes
A15: ED_OEF374_00006 | C15: 79028 | D15: 3401 | E15: LONGERENONG | F15: Yes
A16: ED_OEF374_00007 | C16: 79097 | D16: 3401 | E16: KANAGULK | F16: Yes
A17: ED_OEF374_00008 | C17: 79099 | D17: 3318 | E17: EDENHOPE | F17: Yes
A18: ED_OEF374_00009 | C18: 79100 | D18: 3400 | E18: HORSHAM | F18: Yes
A19: ED_OEF374_00010 | C19: 79101 | D19: 3377 | E19: WARRAK | F19: Yes
A20: ED_OEF374_00011 | C20: 79103 | D20: 3381 | E20: HALLS GAP | F20: Yes
A21: ED_OEF374_00012 | C21: 79105 | D21: 3380 | E21: SYAWELL | F21: Yes
A22: ED_OEF374_00013 | C22: 80091 | D22: 3620 | E22: KYABRAM | F22: Yes
A23: ED_OEF374_00014 | C23: 80128 | D23: 3525 | E23: CHARLTON | F23: Yes
A24: ED_OEF374_00015 | C24: 81049 | D24: 3616 | E24: TATURA | F24: Yes
A25: ED_OEF374_00016 | C25: 81123 | D25: 3550 | E25: BENDIGO | F25: Yes
A26: ED_OEF374_00017 | C26: 81124 | D26: 3730 | E26: YARRAWONGA | F26: Yes
A27: ED_OEF374_00018 | C27: 81125 | D27: 3631 | E27: KIALLA | F27: Yes
A28: ED_OEF374_00019 | C28: 87031 | D28: 3030 | E28: POINT COOK | F28: Yes
A29: ED_OEF374_00020 | C29: 87113 | D29: 3212 | E29: AVALON | F29: Yes
A30: ED_OEF374_00021 | C30: 87168 | D30: 3331 | E30: SHEOAKS | F30: Yes
A31: ED_OEF374_00022 | C31: 87184 | D31: 3219 | E31: THOMSON | F31: Yes
A32: ED_OEF374_00023 | C32: 88051 | D32: 3444 | E32: REDESDALE | F32: Yes
A33: ED_OEF374_00024 | C33: 89002 | D33: 3355 | E33: WENDOUREE | F33: Yes
A34: ED_OEF374_00025 | C34: 89112 | D34: 3351 | E34: WESTMERE | F34: Yes
A35: ED_OEF374_00026 | C35: 90015 | D35: 3233 | E35: CAPE OTWAY | F35: Yes
A36: ED_OEF374_00027 | C36: 90035 | D36: 3242 | E36: BIRREGURRA | F36: Yes
A37: ED_OEF374_00028 | C37: 90171 | D37: 3306 | E37: BRIDGEWATER | F37: Yes
A38: ED_OEF374_00029 | C38: 90173 | D38: 3300 | E38: HENSLEY PARK | F38: Yes
A39: ED_OEF374_00030 | C39: 90175 | D39: 3284 | E39: PORT FAIRY | F39: Yes
A40: ED_OEF374_00031 | C40: 90176 | D40: 3272 | E40: MORTLAKE | F40: Yes
A41: ED_OEF374_00032 | C41: 90180 | D41: 3231 | E41: FAIRHAVEN | F41: Yes
A42: ED_OEF374_00033 | C42: 90182 | D42: 3311 | E42: CASTERTON | F42: Yes
A43: ED_OEF374_00034 | C43: 90184 | D43: 3305 | E43: PORTLAND | F43: Yes
A44: ED_OEF374_00035 | C44: 90186 | D44: 3275 | E44: MAILORS FLAT | F44: Yes
A45: ED_OEF374_00036 | C45: 90194 | D45: 3304 | E45: DARTMOOR | F45: Yes
A46: ED_OEF374_00037
A47: ED_OEF374_00038
A48: ED_OEF374_00039
A49: ED_OEF374_00040
A50: ED_OEF374_00041
A51: ED_OEF374_00042
A52: ED_OEF374_00043
A53: ED_OEF374_00044
A54: ED_OEF374_00045
A55: ED_OEF374_00046
A56: ED_OEF374_00047
A57: ED_OEF374_00048
A58: ED_OEF374_00049
A59: ED_OEF374_00050
A60: ED_OEF374_00051
A61: ED_OEF374_00052
A62: ED_OEF374_00053
A63: ED_OEF374_00054
A64: ED_OEF374_00055
A65: ED_OEF374_00056
A66: ED_OEF374_00057
A67: ED_OEF374_00058
A68: ED_OEF374_00059
A69: ED_OEF374_00060
A70: ED_OEF374_00061
A71: ED_OEF374_00062
A72: ED_OEF374_00063
A73: ED_OEF374_00064
A74: ED_OEF374_00065
A75: ED_OEF374_00066
A76: ED_OEF374_00067
A77: ED_OEF374_00068
A78: ED_OEF374_00069
A79: ED_OEF374_00070
A80: ED_OEF374_00071
A81: ED_OEF374_00072
A82: ED_OEF374_00073
A83: ED_OEF374_00074
A84: ED_OEF374_00075
A85: ED_OEF374_00076
A86: ED_OEF374_00077
A87: ED_OEF374_00078
A88: ED_OEF374_00079
A89: ED_OEF374_00080
A90: ED_OEF374_00081
A91: ED_OEF374_00082
A92: ED_OEF374_00083
A93: ED_OEF374_00084
A94: ED_OEF374_00085
A95: ED_OEF374_00086
A96: ED_OEF374_00087
A97: ED_OEF374_00088
A98: ED_OEF374_00089
A99: ED_OEF374_00090
A100: ED_OEF374_00091
A101: ED_OEF374_00092
A102: ED_OEF374_00093
A103: ED_OEF374_00094
A104: ED_OEF374_00095
A105: ED_OEF374_00096
A106: ED_OEF374_00097
A107: ED_OEF374_00098
A108: ED_OEF374_00099
A109: ED_OEF374_00100
A110: ED_OEF374_00101
A111: ED_OEF374_00102
A112: ED_OEF374_00103
A113: ED_OEF374_00104
A114: ED_OEF374_00105
A115: ED_OEF374_00106
A116: ED_OEF374_00107
A117: ED_OEF374_00108
A118: ED_OEF374_00109
A119: ED_OEF374_00110
A120: ED_OEF374_00111
A121: ED_OEF374_00112
A122: ED_OEF374_00113
A123: ED_OEF374_00114
A124: ED_OEF374_00115
A125: ED_OEF374_00116
A126: ED_OEF374_00117
A127: ED_OEF374_00118
A128: ED_OEF374_00119
A129: ED_OEF374_00120
A130: ED_OEF374_00121
A131: ED_OEF374_00122
A132: ED_OEF374_00123
A133: ED_OEF374_00124
A134: ED_OEF374_00125
A135: ED_OEF374_00126
A136: ED_OEF374_00127
A137: ED_OEF374_00128
A138: ED_OEF374_00129
A139: ED_OEF374_00130
A140: ED_OEF374_00131
A141: ED_OEF374_00132
A142: ED_OEF374_00133
A143: ED_OEF374_00134
A144: ED_OEF374_00135
A145: ED_OEF374_00136
A146: ED_OEF374_00137
A147: ED_OEF374_00138
A148: ED_OEF374_00139
A149: ED_OEF374_00140
A150: ED_OEF374_00141
A151: ED_OEF374_00142
A152: ED_OEF374_00143
A153: ED_OEF374_00144
A154: ED_OEF374_00145
A155: ED_OEF374_00146
A156: ED_OEF374_00147
A157: ED_OEF374_00148
A158: ED_OEF374_00149
A159: ED_OEF374_00150
A160: ED_OEF374_00151
A161: ED_OEF374_00152
A162: ED_OEF374_00153
A163: ED_OEF374_00154
A164: ED_OEF374_00155
A165: ED_OEF374_00156
A166: ED_OEF374_00157
A167: ED_OEF374_00158
A168: ED_OEF374_00159
A169: ED_OEF374_00160
A170: ED_OEF374_00161
A171: ED_OEF374_00162
A172: ED_OEF374_00163
A173: ED_OEF374_00164
A174: ED_OEF374_00165
A175: ED_OEF374_00166
A176: ED_OEF374_00167
A177: ED_OEF374_00168
A178: ED_OEF374_00169
A179: ED_OEF374_00170
A180: ED_OEF374_00171
A181: ED_OEF374_00172
A182: ED_OEF374_00173
A183: ED_OEF374_00174
A184: ED_OEF374_00175
A185: ED_OEF374_00176
A186: ED_OEF374_00177
A187: ED_OEF374_00178
A188: ED_OEF374_00179
A189: ED_OEF374_00180
A190: ED_OEF374_00181
A191: ED_OEF374_00182
A192: ED_OEF374_00183
A193: ED_OEF374_00184
A194: ED_OEF374_00185
A195: ED_OEF374_00186
A196: ED_OEF374_00187
A197: ED_OEF374_00188
A198: ED_OEF374_00189
A199: ED_OEF374_00190
A200: ED_OEF374_00191
A201: ED_OEF374_00192
A202: ED_OEF374_00193
A203: ED_OEF374_00194
... 897 more rows

Sheet Unlocked worksheet
